Cogmind - Beta 13 @@@ ROGUE MODE // 2024.04.03 @ 15:40:33 Player: Ashlemon Result: Destroyed by G-47 Trooper with Particle Gun Performance ------------- Evolutions (2) 1000 Regions Visited (4) 800 Robots Destroyed (11) 55 Value Destroyed (117) 117 Prototype IDs (0) 0 Alien Tech Used (0) 0 Bonus (0) 0 TOTAL SCORE: 1972 Bonus ------- None Cogmind --------- Core Integrity 0/550 Matter 245/300 Energy 300/300 System Corruption 0% Temperature Cool (41) Movement Core (350) Ox6 Location -8/Materials Parts ------- > --- POWER (2) -------- (None) > --- PROPULSION (4) --- (None) > --- UTILITY (3) ------ Large Storage Unit Compact Battery System Shield > --- WEAPON (2) ------- (None) > --- INVENTORY (15) --- Light Ion Engine Small Storage Unit Advanced Weight Redist. System Structural Scanner Sensor Array Improved Terrain Scanner Improved Terrain Scan Processor Improved Propulsion Shielding Light Armor Plating Trap Extractor (0/4) Light Assault Rifle Peak State ------------ > --- POWER ------------ Ion Engine Light Ion Engine > --- PROPULSION ------- Airjet Airjet Airjet Airjet > --- UTILITY ---------- Large Storage Unit Improved Targeting Computer System Shield > --- WEAPON ----------- Spread Laser Mining Laser > --- INVENTORY -------- Small Storage Unit Compact Battery Advanced Weight Redist. System Structural Scanner Sensor Array Improved Terrain Scanner Improved Terrain Scan Processor Improved Propulsion Shielding Light Armor Plating Trap Extractor [Rating: 25] Favorites ----------- Power Light Ion Engine Engine Light Ion Engine Propulsion Flight Unit Treads Light Treads Wheel Wheel Hover Unit Airjet Flight Unit Flight Unit Utility Small Storage Unit Device Structural Scanner Storage Small Storage Unit Processor Improved Targeting Computer Hackware System Shield Weapon Mining Laser Energy Gun EM Pulse Gun Ballistic Gun Light Assault Rifle Special Weapon Mining Laser Build | -11 -10 -10 -9 -8 ------- Run | Yrd Mat Min Mat Mat Slots Evolved 4 | . . . 2 2 Power 1 | . . . . 1 Propulsion 2 | . . . 2 . Utility 1 | . . . . 1 Weapon . | . . . . . Parts Attached 33 | 7 5 . 12 9 Power 6 | 1 1 . 1 3 Engine 6 | 1 1 . 1 3 Core . | . . . . . Reactor . | . . . . . Propulsion 13 | 3 3 . 6 1 Treads 3 | 2 1 . . . Leg . | . . . . . Wheel 1 | 1 . . . . Hover 5 | . . . 4 1 Flight 4 | . 2 . 2 . Utility 9 | 1 1 . 3 4 Device 2 | . 1 . 1 . Storage 5 | 1 . . 2 2 Processor 1 | . . . . 1 Hackware 1 | . . . . 1 Protection . | . . . . . Artifact . | . . . . . Weapon 5 | 2 . . 2 1 Energy Gun 3 | 1 . . 1 1 Energy Cannon . | . . . . . Ballistic Gun 1 | 1 . . . . Ballistic Cannon . | . . . . . Launcher . | . . . . . Special Weapon 1 | . . . 1 . Impact Weapon . | . . . . . Slashing Weapon . | . . . . . Piercing Weapon . | . . . . . Special Melee Weapon . | . . . . . Unidentified Prototypes . | . . . . . Parts Lost 14 | . . . 1 13 Power 4 | . . . . 4 Propulsion 6 | . . . 1 5 Utility 1 | . . . . 1 Weapon 3 | . . . . 3 Highest Loss Streak 11 | . . . 1 11 To Critical Strikes . | . . . . . Average Slot Usage (%) 81 | . 78 57 91 81 Engine 12 | . 14 14 11 13 Treads 5 | . 14 . . . Hover 8 | . . . 5 30 Flight 17 | . 13 28 31 . Device 5 | . 3 . 11 3 Storage 11 | . 14 14 11 9 Processor 1 | . . . . 8 Hackware 1 | . . . . 5 Energy Gun 8 | . 8 . 11 7 Ballistic Gun 2 | . 8 . . . Special Weapon 4 | . . . 10 3 Naked Turns . | . . . . . Heaviest Build 33 | 13 14 8 27 33 Greatest Support 40 | 40 40 8 32 32 Greatest Overweight (x) 9 | 1 1 . 1 9 Average Overweight (x) . | . . . . . Largest Inventory Capacity 15 | 8 8 8 15 15 Average Capacity 9 | 7 8 8 8 14 Most Carried 14 | 6 8 8 8 14 Average Carried 7 | 3 7 7 6 11 Final Capacity 15 | 8 8 8 8 15 Final Carried 11 | 6 8 8 8 11 Class Distribution -------------------- 73% | Mutant 17% | Scavenger-Mutant 8% | Scavenger-Sprinter Dominant Class ---------------- Mutant | -10/Materials Mutant | -10/Mines Scavenger-Mutant | -9/Materials Mutant | -8/Materials Resources | -11 -10 -10 -9 -8 ----------- Run | Yrd Mat Min Mat Mat Matter Collected 409 | 217 107 . 21 64 Remotely 50 | . 50 . . . Salvage Created 160 | . 42 . 37 81 Parts 27 | . 9 . 7 11 Haulers Intercepted . | . . . . . Recyclers Shooed 1 | . . . . 1 Parts Field Recycled . | . . . . . Retrieved Matter . | . . . . . Parts Self-Destructed . | . . . . . Prevented . | . . . . . Kills | -11 -10 -10 -9 -8 ------- Run | Yrd Mat Min Mat Mat Combat Hostiles Destroyed 8 | . 3 . . 5 Guns 8 | . 3 . . 5 Classes Destroyed 4 | . 1 . 2 1 Builder 1 | . . . . 1 Operator 1 | . . . 1 . Watcher 1 | . . . 1 . Swarmer 8 | . 3 . . 5 Best Kill Streak 4 | . 3 . 1 4 Combat Bots Only 4 | . 3 . . 4 Max Kills in Single Turn 2 | . 2 . 1 1 Gunslinging . | . . . . . Exploded . | . . . . . Melee . | . . . . . Uniques/NPCs Destroyed . | . . . . . Combat | -11 -10 -10 -9 -8 -------- Run | Yrd Mat Min Mat Mat Hostile Shots Fired 216 | . 21 . 18 177 Missed 72 | . 5 . 9 58 Damage Taken 1585 | . 128 . 120 1337 Core 635 | . 39 . 38 558 Absorbed by Shields . | . . . . . Core Remaining (%) 91 | 100 . 84 90 . Volleys Fired 27 | . 4 . 13 10 Largest 2 | . 2 . 2 1 Hottest 140 | . 70 . 140 100 Shots Fired 36 | . 8 . 18 10 Gun 24 | . 8 . 8 8 Cannon . | . . . . . Launcher . | . . . . . Special 12 | . . . 10 2 Kinetic 4 | . 4 . . . Thermal 24 | . 4 . 10 10 Explosive . | . . . . . Electromagnetic 8 | . . . 8 . Robot Hit Streak 4 | . 1 . 2 4 Robot Miss Streak 13 | . 3 . 1 13 Penetration Max . | . . . . . Secondary Targets . | . . . . . Shots Hit Robots 11 | . 3 . 2 6 Core Hits 15 | . 3 . 2 10 Critical Kills . | . . . . . Critical Parts Destroyed . | . . . . . Critical Strikes . | . . . . . Melee Attacks . | . . . . . Impact . | . . . . . Slashing . | . . . . . Piercing . | . . . . . Sneak Attacks . | . . . . . Combat Hostiles . | . . . . . Follow-up Attacks . | . . . . . Damage Inflicted 231 | . 45 . 38 148 Guns 197 | . 45 . 38 114 Cannons . | . . . . . Explosions . | . . . . . Melee . | . . . . . Ramming 34 | . . . . 34 Kinetic 7 | . 7 . . . Thermal 152 | . 38 . . 114 Explosive . | . . . . . Electromagnetic 38 | . . . 38 . Impact . | . . . . . Slashing . | . . . . . Piercing . | . . . . . Highest Corruption . | . . . . . Average Corruption . | . . . . . Corruption Purged . | . . . . . Corruption Blocked . | . . . . . Overload Shots . | . . . . . Overflow Damage . | . . . . . Projectiles . | . . . . . Explosions . | . . . . . Melee . | . . . . . Knockbacks . | . . . . . Impact . | . . . . . Kinetic . | . . . . . Secondary . | . . . . . Self-Inflicted Damage 17 | . . . . 17 Shots . | . . . . . Rammed 1 | . . . . 1 Targets Rammed 1 | . . . . 1 Kicked . | . . . . . Crushed . | . . . . . Highest Temperature 150 | . 50 . 149 150 Average Temperature 42 | . 24 . 42 45 Received Heat Transfer 477 | . . . 72 405 Siege Activations . | . . . . . Robots Corrupted . | . . . . . Combat Hostiles . | . . . . . Parts Fried . | . . . . . Impact Corruptions . | . . . . . Robots Melted . | . . . . . Combat Hostiles . | . . . . . Parts Melted 1 | . . . . 1 Heat Transferred 246 | . 111 . . 135 Parts Sabotaged . | . . . . . Parts Stolen . | . . . . . Parts Stripped . | . . . . . Power Chain Reactions . | . . . . . Alert | -11 -10 -10 -9 -8 ------- Run | Yrd Mat Min Mat Mat Peak Influence 173 | . 70 27 164 173 Initial 27 | . . 27 10 21 Average 58 | . 55 27 72 85 Maximum Alert Level . | . . . . . Low Security (%) 100 | 100 100 100 100 100 Level 1 . | . . . . . Level 2 . | . . . . . Level 3 . | . . . . . Level 4 . | . . . . . Level 5 . | . . . . . High Security . | . . . . . Max Security . | . . . . . Squads Dispatched 3 | . 1 . 1 1 Investigation . | . . . . . Extermination . | . . . . . Reinforcement 3 | . 1 . 1 1 Assault . | . . . . . Garrison . | . . . . . Intercept . | . . . . . Searches Triggered . | . . . . . Construction Impeded . | . . . . . Haulers Reinforced . | . . . . . Active Scanning Responses . | . . . . . Cargo Convoy Interrupts . | . . . . . Stealth | -11 -10 -10 -9 -8 --------- Run | Yrd Mat Min Mat Mat Distress Signals . | . . . . . Communications Jammed . | . . . . . Distress Signals . | . . . . . Times Spotted 34 | . 4 . 6 24 Peak Tracking Total 16 | . 3 . 5 16 Tactical Retreats 7 | . . . 4 3 Traps | -11 -10 -10 -9 -8 ------- Run | Yrd Mat Min Mat Mat Traps Triggered . | . . . . . Indirectly . | . . . . . Trap Hack Attempts . | . . . . . Triggered . | . . . . . Disarmed . | . . . . . Reprogrammed . | . . . . . Reused . | . . . . . Traps Extracted . | . . . . . Installed . | . . . . . Triggered . | . . . . . Machines | -11 -10 -10 -9 -8 ---------- Run | Yrd Mat Min Mat Mat Machines Disabled . | . . . . . Max in Single Turn . | . . . . . Machines Repaired . | . . . . . Machines Dismantled . | . . . . . Machines Sabotaged . | . . . . . Overloaded Fab Kills . | . . . . . Hacking | -11 -10 -10 -9 -8 --------- Run | Yrd Mat Min Mat Mat Machines Accessed 7 | . 3 . 4 . Terminals 4 | . 1 . 3 . Fabricators . | . . . . . Repair Stations 1 | . 1 . . . Recycling Units 2 | . 1 . 1 . Scanalyzers . | . . . . . Garrison Access . | . . . . . Total Hacks 12 | . 5 . 7 . Successful 9 | . 3 . 6 . Failed 3 | . 2 . 1 . Catastrophic . | . . . . . Database Lockouts . | . . . . . Manual 1 | . . . 1 . Terminals 6 | . 1 . 5 . Fabricators . | . . . . . Repair Stations 1 | . 1 . . . Recycling Units 5 | . 3 . 2 . Scanalyzers . | . . . . . Garrison Access . | . . . . . Terminal Hacks 4 | . . . 4 . Record 1 | . . . 1 . Alert Level 1 | . . . 1 . Unreport Threat 1 | . . . 1 . Hauler Manifests 1 | . . . 1 . Fabricator Hacks . | . . . . . Repair Station Hacks . | . . . . . Recycling Unit Hacks 5 | . 3 . 2 . Recycle Component 1 | . 1 . . . Process 1 | . 1 . . . Report Inventory 2 | . 1 . 1 . Retrieve Components 1 | . . . 1 . Scanalyzer . | . . . . . Garrison Access Hacks . | . . . . . Unauthorized Hacks . | . . . . . Terminals . | . . . . . Fabricators . | . . . . . Repair Stations . | . . . . . Recycling Units . | . . . . . Scanalyzers . | . . . . . Garrison Access . | . . . . . Data Cores Recovered . | . . . . . Used . | . . . . . Hacking Detections 4 | . 2 . 2 . Full Trace Events . | . . . . . Feedback Events . | . . . . . Feedback Blocked . | . . . . . Robot Schematics Acquired . | . . . . . Robots Built . | . . . . . Authchips . | . . . . . Time . | . . . . . Total Robot Build Rating . | . . . . . Part Schematics Acquired . | . . . . . Parts Built . | . . . . . Authchips . | . . . . . Time . | . . . . . Total Part Build Rating . | . . . . . Parts Repaired . | . . . . . Time . | . . . . . Parts Recycled 1 | . 1 . . . Recycled Matter 45 | . 45 . . . Retrieved Matter . | . . . . . Retrieved Components . | . . . . . Parts Scanalyzed . | . . . . . Part Schematics Acquired . | . . . . . Parts Damaged . | . . . . . Bothacking | -11 -10 -10 -9 -8 ------------ Run | Yrd Mat Min Mat Mat Used RIF Installer . | . . . . . Robots Hacked . | . . . . . Non-combat . | . . . . . Combat . | . . . . . Robot Hacks Applied . | . . . . . Relay Couplers Released . | . . . . . Fabnet Peak Effective % . | . . . . . Robots Rewired . | . . . . . Allies Hacked . | . . . . . Hacks Repelled . | . . . . . Allies | -11 -10 -10 -9 -8 -------- Run | Yrd Mat Min Mat Mat Total Allies . | . . . . . Largest Group . | . . . . . Highest-Rated Group . | . . . . . Highest-Rated Ally . | . . . . . Total Orders . | . . . . . Ally Attacks . | . . . . . Total Damage . | . . . . . Kills . | . . . . . Allies Corrupted . | . . . . . Allies Melted . | . . . . . Intel | -11 -10 -10 -9 -8 ------- Run | Yrd Mat Min Mat Mat Robot Analysis Total . | . . . . . Derelict Logs Recovered 1 | . . 1 . . Drone Launches . | . . . . . Drone Recoveries . | . . . . . Exploration | -11 -10 -10 -9 -8 ------------- Run | Yrd Mat Min Mat Mat Turns Passed 926 | 90 291 94 269 182 Spaces Moved 1401 | 57 359 244 519 222 Core 5 | 2 . . . 3 Treads 117 | 33 84 . . . Legs . | . . . . . Wheels 22 | 22 . . . . Hover 278 | . . . 59 219 Flight 979 | . 275 244 460 . Fastest Speed 31 | 50 37 37 31 48 Average Speed 52 | 130 68 37 36 59 Slowest Speed 500 | 160 160 37 120 500 Overloaded Moves . | . . . . . Propulsion Burnouts . | . . . . . Robots Hopped 3 | . . . 3 . Cave-ins Triggered . | . . . . . Exploration Rate (%) 32 | 4 37 55 38 28 Regions Visited 4 Branch Regions 1 Pre-discovered Areas 1 | . . 1 . . Known Exits Taken . | . . . . . Unknown Exits Taken 4 | 1 1 1 1 . Scrap Searched 2 | . . 2 . . Spaces Dug 11 | . . . 9 2 Terrain Destroyed 11 | . . . 9 2 Melee . | . . . . . Projectile 11 | . . . 9 2 AOE . | . . . . . Terrain Rammed . | . . . . . Walls Destroyed . | . . . . . Machines Disabled . | . . . . . Actions | -11 -10 -10 -9 -8 --------- Run | Yrd Mat Min Mat Mat Total 1534 | 70 401 247 558 258 Wait 8 | . 1 2 . 5 Move 1391 | 56 358 243 512 222 Hop 3 | . . . 3 . Pick Up 41 | 6 14 1 10 10 Fast Attach 14 | 6 3 . 4 1 Attach 12 | 1 . . 5 6 Detach 4 | 1 3 . . . Swap 7 | . 2 . 3 2 Drop 26 | . 16 1 8 1 Fire 27 | . 4 . 13 10 Melee . | . . . . . Ram 1 | . . . . 1 Kick . | . . . . . Crush . | . . . . . Escape Stasis . | . . . . . Rewire . | . . . . . Trap . | . . . . . Miscellaneous . | . . . . . Route ------- -11/Scrapyard -10/Materials -10/Mines -9/Materials -8/Materials History --------- Turn | Location | Event 2 | -11/Scrapyard | Met Revision 17 17 | -11/Scrapyard | Discovered new exit (range 15) 91 | -11/Scrapyard | Entered Materials 322 | -10/Materials | Build established: Mutant 348 | -10/Materials | Discovered new exit (range 12) 382 | -10/Materials | Entered Mines 384 | -10/Mines | Met a Derelict bent on vengeance 444 | -10/Mines | Found a hidden stash of uninstalled traps 457 | -10/Mines | Learned location of Zion (-6) 469 | -10/Mines | Discovered new exit (range 14) 476 | -10/Mines | Entered Materials 476 | -9/Materials | Evolved 2 slots: Propulsion x2 740 | -9/Materials | Discovered new exit (range 8) 745 | -9/Materials | Entered another Materials area 745 | -8/Materials | Evolved 2 slots: Power x1, Utility x1 915 | -8/Materials | Core integrity fell below 50% 921 | -8/Materials | Core integrity fell below 20% 927 | -8/Materials | Destroyed by G-47 Trooper with Particle Gun Last Messages --------------- Lgt. Ion Engine destroyed. K-01 Serf collects debris. Airjet destroyed. K-01 Serf collects debris. Slammed into U-05 Engineer. U-05 Engineer destroyed. Destabilizing: Core damaged (-5). Acquired 21 matter. S-10 Pest destroyed. R-06 Scavenger collects Flight Unit. Spread Laser destroyed. Critical hit (Burn: +37). Airjet destroyed. Imp. Targeting Computer destroyed. Deuterium Engine destroyed. S-10 Pest destroyed. Lgt. Ion Engine destroyed. Critical hit (Burn: +37). R-06 Scavenger collects Structural Scanner. Critical hit (Burn: +37). Map ----- +----------------------------------------------------+ | ??????????????????????# ## #?# ### | | ???????????????????#??# ## #?# | | ???????????????????? ?# ## #?# | | ?????????????????###/## ## #?# | | ?????????????????# ##+#### #?## #### | | ?????????????????# / #??# #??? | | ?????????????????# ! # #??# #??? | | ?????????????????# ?# ####### #??# #??? | | ?????????????????# ??# #?????? #??# #??? | | ?????????????????#????+ #??????+####/#### | | ??????????????????????# ######+#????????# # | | ??????????????????????## ##???????????????# # | | ???????????????????????# #????????????????# # | | ???????????????????????# #????????????????# # | | ???????????????????????# #????????????????# + | | ???????????????????????# #??????????? # # | | ???????????????????????# #??????? ##?####+######## | | ???????????????????????# #??????? + | | ???????????????????????# #???????## ######## | | ???????????????????????# #??????? # """ ######## | | ???????????????????????#r#??????? + "T" # ! # | | ???????????????????????#g#??????? # # # | | ??????????????????????##=##?????? # [ # # | | ??????????????????????#%Yg#?????? + + " | | ??????????????????????#gsg#?????? # # ! # | | ??????????????????????#=g@#?????? # """ # # | | ??????????????????????##g##?????? # """ ##+##### | | ???????????????????????#g#??????? # """ ##### | | ???????????????????????# #???????## ##??? | | ???????????????????????# #???????## ##??? | | ???????????????????????# #???????## #####+##??? | | ???????????????????????# #???????## ## ??? | | ???????????????????????# #???????## ##????????? | | ???????????????????????# #???????##### ## ???????? | | ??????????????????????? #??## ?? # ## ???????? | | ???????????????????????# ???## ????? # + ???????? | | ???????????????????????? ???## ??? # # ##? | | ???????????????????????? ???##! ""? # #####+## | | ????????????????????????+???## # | | ????????????????????????????##! ! ! + | | ????????????????????????????## # | | ????????????????????????????## ? ###+####### | | ???????????????????????????### ??? # ### | | ???????????????????????????## ????? # ### | | ???????????????????????????###?????? # ### | | ???????????????????????????###??????## ### | | ????????????????????????????????????##! """"" ### | | ????????????????????????????????????## """"" ### | | ????????????????????????????????????## """"" ### | | ????????????????????????????????????###"######### | +----------------------------------------------------+ Best States ------------- Heat Dissipation 31 Energy Generation 15 Energy Capacity 275 Matter Stores 300 Matter Capacity 300 Sight Range 16 Terrain Scan Density 10 Evasion (%) 63 Targeting Accuracy 6 Recoil Reduction 2 Defensive Hacking 10 Item Schematics ----------------- None Robot Schematics ------------------ None Fabricated ------------ Nothing Alien Tech Used ----------------- None Achievements -------------- Shopping List Challenges ------------ None Game ------ Seed SensorXenonSubcomponent Manual? 0 Play Time 00:25:05 Cumulative 3.4 hours Start 2024.04.03 @ 15:16:38 End 2024.04.03 @ 15:40:33 Sessions 1 Manual Loads 0 Difficulty Rogue Special Mode None Game No. 7 Rogue 7 Adventurer 0 Explorer 0 Win Type - Total 0 Types 0/0/0/0/0/0/0/0/0 Lore% 3 Gallery% 9 Achievement% 7 Wizard Run 0 Options --------- Layout 1 ASCII 0 Keyboard 1 Movement Arrows Keybinds 0 Fullscreen 1 Font 24/Smallcaps Map View 50x35 Zoom Use 0% Tactical HUD 0 Map Filters NONE Filters NONE Steam 1 RUN: 913eb14d-0cfd-47af-b459-abea80ca2e74